fUSD/lending_fUSD_20241018
["ID","MTS","AMOUNT","RATE_DAILY","PERIOD"]
[340478281,1729290661897,-2903.2,0.00024999,2]
[340478282,1729290661910,-912.42,0.00024999,2]
[340478283,1729290661919,-2903.2,0.00024999,2]
[340478284,1729290661929,-912.42,0.00024999,2]
[340478285,1729290661939,-2903.2,0.00024999,2]
[340478286,1729290661949,-912.42,0.00024999,2]
[340478287,1729290661960,-2903.2,0.00024999,2]
[340478288,1729290661970,-912.42,0.00024999,2]
[340478289,1729290661981,-2903.2,0.00024999,2]
[340478290,1729290661991,-912.42,0.00024999,2]
[340478291,1729290662000,-2903.23304855,0.00024999,2]
[340478292,1729290662009,-912.42,0.00024999,2]
[340478293,1729290662019,-912.42,0.00024999,2]
[340478294,1729290662028,-912.42,0.00024999,2]
[340478295,1729290662038,-912.6,0.00024999,2]
[340478296,1729290662047,-2172.5,0.00024999,2]
[340478297,1729290662056,-2172.5,0.00024999,2]
[340478298,1729290662065,-2172.5,0.00024999,2]
[340478299,1729290662074,-2172.5,0.00024999,2]
[340478300,1729290662083,-2172.5,0.00024999,2]
[340478301,1729290662092,-2172.5,0.00024999,2]
[340478302,1729290662101,-2172.5,0.00024999,2]
[340478303,1729290662111,-2172.56,0.00024999,2]
[340478304,1729290662122,-2031.71,0.00024999,2]
[340478305,1729290662131,-2031.71,0.00024999,2]
[340478306,1729290662141,-2031.71,0.00024999,2]
[340478307,1729290662150,-2031.71,0.00024999,2]
[340478308,1729290662159,-2031.71,0.00024999,2]
[340478309,1729290662169,-2031.71,0.00024999,2]
[340478310,1729290662179,-2031.71,0.00024999,2]
[340478311,1729290662188,-2031.90498896,0.00024999,2]
[340478312,1729290662197,-4263.44,0.00024999,2]
[340478313,1729290662206,-4263.44,0.00024999,2]
[340478314,1729290662216,-4263.44,0.00024999,2]
[340478315,1729290662225,-4263.44,0.00024999,2]
[340478316,1729290662234,-4263.44,0.00024999,2]
[340478317,1729290662244,-4263.44,0.00024999,2]
[340478318,1729290662254,-4263.44,0.00024999,2]
[340478319,1729290662264,-4263.65206903,0.00024999,2]
[340478320,1729290662273,-1290.6,0.00024999,2]
[340478321,1729290662283,-1290.6,0.00024999,2]
[340478322,1729290662292,-1290.6,0.00024999,2]
[340478323,1729290662302,-1290.6,0.00024999,2]
[340478324,1729290662311,-1290.6,0.00024999,2]
[340478325,1729290662320,-1290.6,0.00024999,2]
[340478326,1729290662329,-1290.6,0.00024999,2]
[340478327,1729290662338,-1290.6,0.00024999,2]
[340478328,1729290662348,-1290.6,0.00024999,2]
[340478329,1729290662357,-1290.6924,0.00024999,2]
[340478330,1729290662368,-2734.24,0.00024999,2]
[340478331,1729290662378,-2734.24,0.00024999,2]
[340478332,1729290662387,-2734.24,0.00024999,2]
[340478333,1729290662397,-2734.24,0.00024999,2]
[340478334,1729290662407,-1146.5,0.00024999,2]
[340478335,1729290662416,-2734.24,0.00024999,2]
[340478336,1729290662426,-1146.5,0.00024999,2]
[340478337,1729290662436,-2734.24,0.00024999,2]
[340478338,1729290662445,-1146.5,0.00024999,2]
[340478339,1729290662455,-2734.24,0.00024999,2]
[340478340,1729290662466,-500.0,0.00024999,2]
[340478341,1729290662475,-1146.5,0.00024999,2]
[340478342,1729290662485,-500.0,0.00024999,2]
[340478343,1729290662494,-1146.5,0.00024999,2]
[340478344,1729290662504,-2734.24,0.00024999,2]
[340478345,1729290662514,-500.0,0.00024999,2]
[340478346,1729290662523,-1146.5,0.00024999,2]
[340478347,1729290662533,-2734.24,0.00024999,2]
[340478348,1729290662542,-1146.5,0.00024999,2]
[340478349,1729290662553,-472.53041787,0.00024999,2]
[340478350,1729290662563,-2734.30117217,0.00024999,2]
[340478351,1729290662572,-1146.65835316,0.00024999,2]
[340478352,1729290662581,-885.31,0.00024999,2]
[340478353,1729290662591,-885.31,0.00024999,2]
[340478354,1729290662601,-885.31,0.00024999,2]
[340478355,1729290662610,-885.31,0.00024999,2]
[340478356,1729290662621,-885.31,0.00024999,2]
[340478357,1729290662630,-885.31,0.00024999,2]
[340478358,1729290662640,-885.31,0.00024999,2]
[340478359,1729290662650,-885.31,0.00024999,2]
[340478360,1729290662659,-275.857601,0.00024999,7]
[340478361,1729290662669,-885.31,0.00024999,2]
[340478362,1729290662680,-275.857601,0.00024999,7]
[340478363,1729290662689,-885.350459,0.00024999,2]
[340478364,1729290662699,-275.857601,0.00024999,7]
[340478365,1729290662708,-273.189176,0.00024999,7]
[340478366,1729290662718,-273.189176,0.00024999,7]
[340478367,1729290662728,-273.189176,0.00024999,7]
[340478368,1729290662738,-275.857601,0.00024999,7]
[340478369,1729290662747,-275.857601,0.00024999,7]
[340478370,1729290662757,-275.857601,0.00024999,7]
[340478371,1729290662766,-151.0,0.00024999,7]
[340478372,1729290662776,-151.0,0.00024999,7]
[340478373,1729290662785,-151.0,0.00024999,7]
[340478374,1729290662795,-273.189176,0.00024999,7]
[340478375,1729290662804,-273.189176,0.00024999,7]
[340478376,1729290662814,-273.189176,0.00024999,7]
[340478377,1729290662823,-2016.360373,0.00024999,7]
[340478378,1729290662833,-2016.360373,0.00024999,7]
[340478379,1729290662843,-2016.360373,0.00024999,7]
[340478380,1729290662852,-500.0,0.00024999,2]
[340478381,1729290662862,-1221.57,0.00024999,2]
[340478382,1729290662873,-500.0,0.00024999,2]
[340478383,1729290662883,-1221.57,0.00024999,2]
[340478384,1729290662893,-500.0,0.00024999,2]
[340478385,1729290662905,-2016.360373,0.00024999,7]
[340478386,1729290662915,-1221.57,0.00024999,2]
[340478387,1729290662925,-500.0,0.00024999,2]
[340478388,1729290662935,-2016.360373,0.00024999,7]
[340478389,1729290662944,-500.0,0.00024999,2]
[340478390,1729290662954,-1221.57,0.00024999,2]
[340478391,1729290662964,-2016.360373,0.00024999,7]
[340478392,1729290662974,-299.34278262,0.00024999,2]
[340478393,1729290662988,-1221.57,0.00024999,2]
[340478394,1729290662998,-1221.57,0.00024999,2]
[340478395,1729290663008,-1221.57,0.00024999,2]
[340478396,1729290663019,-1221.7057696,0.00024999,2]
[340478397,1729290663029,-1420.96,0.00024999,2]
[340478398,1729290663040,-1041.95,0.00024999,2]
[340478399,1729290663049,-1420.96,0.00024999,2]
[340478400,1729290663059,-1041.95,0.00024999,2]
[340478401,1729290663069,-1420.96,0.00024999,2]
[340478402,1729290663079,-1041.95,0.00024999,2]
[340478403,1729290663090,-1420.96,0.00024999,2]
[340478404,1729290663101,-1420.96,0.00024999,2]
[340478405,1729290663110,-1041.95,0.00024999,2]
[340478406,1729290663121,-1041.95,0.00024999,2]
[340478407,1729290663131,-1420.96,0.00024999,2]
[340478408,1729290663142,-1420.96,0.00024999,2]
[340478409,1729290663152,-1421.05422936,0.00024999,2]
[340478410,1729290663162,-1041.95,0.00024999,2]
[340478411,1729290663172,-1041.95,0.00024999,2]
[340478412,1729290663182,-1041.95,0.00024999,2]
[340478413,1729290663192,-1041.95,0.00024999,2]
[340478414,1729290663202,-1042.0573251,0.00024999,2]
[340478415,1729290663212,-650.56,0.00024999,2]
[340478416,1729290663221,-650.56,0.00024999,2]
[340478417,1729290663231,-650.56,0.00024999,2]
[340478418,1729290663240,-650.56,0.00024999,2]
[340478419,1729290663250,-650.56,0.00024999,2]
[340478420,1729290663259,-650.56,0.00024999,2]
[340478421,1729290663269,-650.56,0.00024999,2]
[340478422,1729290663279,-650.57440244,0.00024999,2]
[340478423,1729290663290,-958.19,0.00024999,2]
[340478424,1729290663299,-958.19,0.00024999,2]
[340478425,1729290663309,-958.19,0.00024999,2]
[340478426,1729290663319,-958.19,0.00024999,2]
[340478427,1729290663329,-564.73,0.00024999,2]
[340478428,1729290663339,-958.19,0.00024999,2]
[340478429,1729290663349,-564.73,0.00024999,2]
[340478430,1729290663359,-958.19,0.00024999,2]
[340478431,1729290663369,-564.73,0.00024999,2]
[340478432,1729290663379,-564.73,0.00024999,2]
[340478433,1729290663389,-958.19,0.00024999,2]
[340478434,1729290663399,-564.73,0.00024999,2]
[340478435,1729290663409,-958.29029617,0.00024999,2]
[340478436,1729290663419,-564.73,0.00024999,2]
[340478437,1729290663428,-564.73,0.00024999,2]
[340478438,1729290663438,-564.73,0.00024999,2]
[340478439,1729290663448,-564.73,0.00024999,2]
[340478440,1729290663458,-564.92495165,0.00024999,2]
[340478441,1729290663468,-225.64618,0.00024999,7]
[340478442,1729290663477,-3532.22,0.00024999,2]
[340478443,1729290663488,-151.0,0.00024999,7]
[340478444,1729290663497,-3532.22,0.00024999,2]
[340478445,1729290663507,-151.0,0.00024999,7]
[340478446,1729290663517,-3532.22,0.00024999,2]
[340478447,1729290663526,-151.0,0.00024999,7]
[340478448,1729290663536,-3532.22,0.00024999,2]
[340478449,1729290663546,-3532.22,0.00024999,2]
[340478450,1729290663555,-3532.22,0.00024999,2]
[340478451,1729290663565,-3532.22,0.00024999,2]
[340478452,1729290663574,-3532.40780421,0.00024999,2]
[340478453,1729290663584,-3901.79,0.00024999,2]
[340478454,1729290663594,-3901.79,0.00024999,2]
[340478455,1729290663604,-3901.79,0.00024999,2]
[340478456,1729290663614,-3901.79,0.00024999,2]
[340478457,1729290663624,-3901.79,0.00024999,2]
[340478458,1729290663633,-3901.79,0.00024999,2]
[340478459,1729290663643,-3901.79,0.00024999,2]
[340478460,1729290663652,-3901.88552946,0.00024999,2]
[340478461,1729290663662,-685.12,0.00024999,2]
[340478462,1729290663671,-685.12,0.00024999,2]
[340478463,1729290663682,-3308.42,0.00024999,2]
[340478464,1729290663691,-685.12,0.00024999,2]
[340478465,1729290663701,-3308.42,0.00024999,2]
[340478466,1729290663711,-685.12,0.00024999,2]
[340478467,1729290663721,-3308.42,0.00024999,2]
[340478468,1729290663730,-685.12,0.00024999,2]
[340478469,1729290663740,-3308.42,0.00024999,2]
[340478470,1729290663750,-685.12,0.00024999,2]
[340478471,1729290663759,-685.12,0.00024999,2]
[340478472,1729290663769,-685.2,0.00024999,2]
[340478473,1729290663778,-676.24,0.00024999,2]
[340478474,1729290663788,-500.0,0.00024999,2]
[340478475,1729290663797,-676.24,0.00024999,2]
[340478476,1729290663806,-500.0,0.00024999,2]
[340478477,1729290663816,-676.24,0.00024999,2]
[340478478,1729290663825,-676.24,0.00024999,2]
[340478479,1729290663835,-500.0,0.00024999,2]
[340478480,1729290663844,-676.24,0.00024999,2]
[340478481,1729290663854,-500.0,0.00024999,2]
[340478482,1729290663863,-618.65,0.00024999,2]
[340478483,1729290663874,-676.24,0.00024999,2]
[340478484,1729290663884,-500.0,0.00024999,2]
[340478485,1729290663894,-618.65,0.00024999,2]
[340478486,1729290663906,-676.24,0.00024999,2]
[340478487,1729290663916,-834.21,0.00024999,2]
[340478488,1729290663926,-439.27840024,0.00024999,2]
[340478489,1729290663936,-618.65,0.00024999,2]
[340478490,1729290663947,-676.24,0.00024999,2]
[340478491,1729290663956,-618.65,0.00024999,2]
[340478492,1729290663966,-834.21,0.00024999,2]
[340478493,1729290663975,-676.24,0.00024999,2]
[340478494,1729290663985,-618.65,0.00024999,2]
[340478495,1729290663995,-834.21,0.00024999,2]
[340478496,1729290664005,-676.32894946,0.00024999,2]
[340478497,1729290664015,-618.65,0.00024999,2]
[340478498,1729290664024,-834.21,0.00024999,2]
[340478499,1729290664034,-618.65,0.00024999,2]
[340478500,1729290664043,-834.21,0.00024999,2]
[340478501,1729290664053,-618.81549359,0.00024999,2]
[340478502,1729290664062,-834.21,0.00024999,2]
[340478503,1729290664072,-834.21,0.00024999,2]
[340478504,1729290664082,-834.38094768,0.00024999,2]
[340478505,1729290664092,-1560.23,0.00024999,2]
[340478506,1729290664101,-1560.23,0.00024999,2]
[340478507,1729290664112,-1560.23,0.00024999,2]
[340478508,1729290664122,-1560.23,0.00024999,2]
[340478509,1729290664131,-1560.23,0.00024999,2]
[340478510,1729290664141,-1560.23,0.00024999,2]
[340478511,1729290664150,-1560.23,0.00024999,2]
[340478512,1729290664159,-1560.43760911,0.00024999,2]
[340478513,1729290664168,-1417.77,0.00024999,2]
[340478514,1729290664178,-1417.77,0.00024999,2]
[340478515,1729290664323,-2673.97,0.00024999,2]
[340478516,1729290664332,-1417.77,0.00024999,2]
[340478517,1729290664342,-2673.97,0.00024999,2]
[340478518,1729290664351,-1417.77,0.00024999,2]
[340478519,1729290664361,-2673.97,0.00024999,2]
[340478520,1729290664370,-1417.77,0.00024999,2]
[340478521,1729290664386,-2673.97,0.00024999,2]
[340478522,1729290664395,-1417.77,0.00024999,2]
[340478523,1729290664404,-2673.97,0.00024999,2]
[340478524,1729290664413,-1417.77,0.00024999,2]
[340478525,1729290664423,-2673.97,0.00024999,2]
[340478526,1729290664432,-1417.77,0.00024999,2]
[340478527,1729290664441,-1417.77,0.00024999,2]
[340478528,1729290664450,-2673.97,0.00024999,2]
[340478529,1729290664460,-1417.83107006,0.00024999,2]
[340478530,1729290664469,-2673.97,0.00024999,2]
[340478531,1729290664478,-2673.97,0.00024999,2]
[340478532,1729290664487,-2674.07094221,0.00024999,2]
[340478533,1729290664497,-1557.1,0.00024999,2]
[340478534,1729290664507,-820.376586,0.00024999,7]
[340478535,1729290664516,-1557.1,0.00024999,2]
[340478536,1729290664525,-820.376586,0.00024999,7]
[340478537,1729290664534,-1557.1,0.00024999,2]
[340478538,1729290664544,-1557.1,0.00024999,2]
[340478539,1729290664553,-1557.1,0.00024999,2]
[340478540,1729290664563,-1557.1,0.00024999,2]
[340478541,1729290664572,-1557.1,0.00024999,2]
[340478542,1729290664582,-1557.23738981,0.00024999,2]
[340478543,1729290664592,-151.0,0.00024999,7]
[340478544,1729290664601,-820.376586,0.00024999,7]
[340478545,1729290664611,-151.0,0.00024999,7]
[340478546,1729290664621,-820.376586,0.00024999,7]
[340478547,1729290664630,-500.0,0.00024999,2]
[340478548,1729290664640,-500.0,0.00024999,2]
[340478549,1729290664650,-605.76544079,0.00024999,2]
[340478550,1729290664660,-761.83,0.00024999,2]
[340478551,1729290664670,-761.83,0.00024999,2]
[340478552,1729290664680,-761.83,0.00024999,2]
[340478553,1729290664690,-761.83,0.00024999,2]
[340478554,1729290664699,-761.83,0.00024999,2]
[340478555,1729290664708,-761.83,0.00024999,2]
[340478556,1729290664718,-761.83,0.00024999,2]
[340478557,1729290664727,-761.83,0.00024999,2]
[340478558,1729290664736,-761.83,0.00024999,2]
[340478559,1729290664745,-762.05737285,0.00024999,2]
[340478560,1729290664754,-1041.77,0.00024999,2]
[340478561,1729290664764,-1041.77,0.00024999,2]
[340478562,1729290664773,-1041.77,0.00024999,2]
[340478563,1729290664784,-1041.77,0.00024999,2]
[340478564,1729290664794,-1041.77,0.00024999,2]
[340478565,1729290664805,-1041.77,0.00024999,2]
[340478566,1729290664814,-1041.77,0.00024999,2]
[340478567,1729290664823,-1041.8221641,0.00024999,2]
[340478568,1729290664833,-878.06,0.00024999,2]
[340478569,1729290664842,-878.06,0.00024999,2]
[340478570,1729290664851,-878.06,0.00024999,2]
[340478571,1729290664860,-878.06,0.00024999,2]
[340478572,1729290664870,-2553.87,0.00024999,2]
[340478573,1729290664879,-878.06,0.00024999,2]
[340478574,1729290664891,-2553.87,0.00024999,2]
[340478575,1729290664902,-878.06,0.00024999,2]
[340478576,1729290664913,-2553.87,0.00024999,2]
[340478577,1729290664922,-878.06,0.00024999,2]
[340478578,1729290664931,-2553.87,0.00024999,2]
[340478579,1729290664941,-878.06,0.00024999,2]
[340478580,1729290664951,-2553.87,0.00024999,2]
[340478581,1729290664960,-878.06,0.00024999,2]
[340478582,1729290664970,-2553.87,0.00024999,2]
[340478583,1729290664981,-878.06773385,0.00024999,2]
[340478584,1729290664990,-2553.87,0.00024999,2]
[340478585,1729290664999,-2553.87,0.00024999,2]
[340478586,1729290665008,-2553.87,0.00024999,2]
[340478587,1729290665018,-2554.07740469,0.00024999,2]
[340478588,1729290665026,-3223.03,0.00024999,2]
[340478589,1729290665036,-3223.03,0.00024999,2]
[340478590,1729290665045,-3223.03,0.00024999,2]
[340478591,1729290665053,-3223.03,0.00024999,2]
[340478592,1729290665063,-3223.03,0.00024999,2]
[340478593,1729290665072,-3223.03,0.00024999,2]
[340478594,1729290665081,-3223.03,0.00024999,2]
[340478595,1729290665090,-3223.10809412,0.00024999,2]
[340478596,1729290665100,-500.0,0.00024999,2]
[340478597,1729290665109,-607.57826769,0.00024999,2]
[340478598,1729290665119,-500.0,0.00024999,2]
[340478599,1729290665128,-500.0,0.00024999,2]
[340478600,1729290665138,-500.0,0.00024999,2]
[340478601,1729290665148,-500.0,0.00024999,2]
[340478602,1729290665157,-500.0,0.00024999,2]
[340478603,1729290665166,-500.0,0.00024999,2]
[340478604,1729290665175,-506.11636201,0.00024999,2]
[340478605,1729290665185,-1112.67,0.00024999,2]
[340478606,1729290665194,-1112.67,0.00024999,2]
[340478607,1729290665203,-1112.67,0.00024999,2]
[340478608,1729290665212,-1112.67,0.00024999,2]
[340478609,1729290665222,-1112.67,0.00024999,2]
[340478610,1729290665231,-1112.67,0.00024999,2]
[340478611,1729290665240,-1112.67,0.00024999,2]
[340478612,1729290665249,-1112.67,0.00024999,2]
[340478613,1729290665258,-1817.86,0.00024999,2]
[340478614,1729290665268,-1817.86,0.00024999,2]
[340478615,1729290665277,-1817.86,0.00024999,2]
[340478616,1729290665286,-708.92,0.00024999,2]
[340478617,1729290665295,-1817.86,0.00024999,2]
[340478618,1729290665305,-708.92,0.00024999,2]
[340478619,1729290665314,-1817.86,0.00024999,2]
[340478620,1729290665326,-708.92,0.00024999,2]
[340478621,1729290665337,-1817.86,0.00024999,2]
[340478622,1729290665347,-708.92,0.00024999,2]
[340478623,1729290665357,-1817.86,0.00024999,2]
[340478624,1729290665366,-708.92,0.00024999,2]
[340478625,1729290665376,-1817.9015831,0.00024999,2]
[340478626,1729290665386,-708.92,0.00024999,2]
[340478627,1729290665395,-708.92,0.00024999,2]
[340478628,1729290665404,-708.92,0.00024999,2]
[340478629,1729290665413,-708.92,0.00024999,2]
[340478630,1729290665423,-709.11972648,0.00024999,2]
[340478631,1729290665433,-1176.71,0.00024999,2]
[340478632,1729290665444,-1176.71,0.00024999,2]
[340478633,1729290665454,-1176.71,0.00024999,2]
[340478634,1729290665464,-1176.71,0.00024999,2]
[340478635,1729290665474,-1176.71,0.00024999,2]
[340478636,1729290665484,-1176.71,0.00024999,2]
[340478637,1729290665494,-1176.71,0.00024999,2]
[340478638,1729290665504,-1176.71,0.00024999,2]
[340478639,1729290665514,-1176.71,0.00024999,2]
[340478640,1729290665523,-1176.8322806,0.00024999,2]
[340478641,1729290665533,-50000.0,0.00025,11]
[340478642,1729290665542,-50000.0,0.00025,13]
[340478643,1729290665551,-50000.0,0.00025,16]
[340478644,1729290665560,-50000.0,0.00025,9]
[340478645,1729290665569,-10000.0,0.00025,2]
[340478646,1729290665579,-8170284.0259884,0.00025,2]
[340478647,1729290665616,-1349.411646,0.00025,2]
[340478648,1729290665629,-364.55288824,0.00025,2]
[340478649,1729290665640,-738.0,0.00025,2]
[340478650,1729290665651,-517.72,0.00025,2]
[340478651,1729290665662,-665.04,0.00025,2]
[340478652,1729290665936,-209.895,0.00023028,2]
[340478653,1729290665947,-867.01863063,0.00024931,2]
[340478654,1729290665959,-1638.40426576,0.00024931,2]
[340478655,1729290665970,-344.88288806,0.00024931,2]
[340478656,1729290665982,-659.2,0.00024931,2]
[340478657,1729290665995,-532.06421555,0.00024931,2]
[340478658,1729290666004,-211.40682771,0.00024973,2]
[340478659,1729290666101,-288.59317229,0.00024973,2]
[340478660,1729290666110,-4041.57,0.00024978,2]
[340478661,1729290666120,-4041.57,0.00024996,2]
[340478662,1729290666130,-4041.57,0.00024996,2]
[340478663,1729290666140,-3590.77243488,0.00024997,2]
[340478664,1729290666164,-550.0,0.00021058,2]
[340478665,1729290666175,-202.24,0.00021058,2]
[340478666,1729290666189,-397.38270337,0.00024851,10]
[340478667,1729290666204,-1842.12361125,0.00024851,10]
[340478668,1729290666215,-300.0,0.00024851,10]
[340478669,1729290666225,-962.86714261,0.00024851,10]
[340478670,1729290666235,-450.79756512,0.00024997,2]
[340478671,1729290666245,-4041.57,0.00024997,2]
[340478672,1729290666253,-381417.2547574,0.00025,2]
[340478673,1729290666386,-201.21,0.00021313,2]
[340478674,1729290666395,-80.116473,0.00024998,2]
[340478675,1729290666407,-562.6023957,0.00024998,2]
[340478676,1729290666422,-3398.8511313,0.00024998,2]
[340478677,1729290666432,-4041.57,0.00024998,2]
[340478678,1729290666441,-4041.57,0.00024998,2]
[340478679,1729290666450,-4041.57,0.00024998,2]
[340478680,1729290666460,-4041.74683878,0.00024998,2]
[340478681,1729290666469,-898.98202992,0.00025,2]
[340478682,1729290666481,-548.79774281,0.00025,2]
[340478683,1729290666491,-4246.81921635,0.00025,2]
[340478684,1729290666503,-942.316296,0.00025,2]
[340478685,1729290666514,-2802.70829416,0.00025,2]
[340478686,1729290666525,-3064.55539224,0.00025,2]
[340478687,1729290666537,-436.44200597,0.00025,2]
[340478688,1729290666548,-518.18000001,0.00025,2]
[340478689,1729290666560,-387.0104315,0.00025,2]
[340478690,1729290666571,-730.07140233,0.00025,2]
[340478691,1729290666583,-652.62529538,0.00025,2]
[340478692,1729290666595,-11488.49189333,0.00025,2]
[340478693,1729290666604,-9730.53661063,0.00025,2]
[340478694,1729290666617,-1468.42819075,0.00025,2]
[340478695,1729290666647,-12620.96804001,0.00025,2]
[340478696,1729290666789,-588.94,0.00023028,2]
[340478697,1729290666801,-561.06,0.00023028,2]
[340478698,1729290666810,-555.0,0.00023028,2]
[340478699,1729290666819,-559.69293365,0.00025,2]
[340478700,1729290666831,-812.74759037,0.00025,2]
[340478701,1729290666842,-143253.24136088,0.00025,2]
[340478702,1729290666853,-3929.113636,0.00025,2]
[340478703,1729290666864,-7874.96601383,0.00025,2]
[340478704,1729290666881,-250.0,0.00023984,2]
[340478705,1729290666891,-1624.06416438,0.00025,2]
[340478706,1729290666905,-603.28558204,0.00025,2]
[340478707,1729290666917,-2034.00304997,0.00025,2]
[340478708,1729290666932,-11728.4416875,0.00025,2]
[340478709,1729290666943,-734.01641473,0.00025,2]
[340478710,1729290666955,-476.85678591,0.00025,2]
[340478711,1729290666967,-3351.97712188,0.00025,2]
[340478712,1729290666980,-743.3523116,0.00025,2]
[340478713,1729290666992,-943.31862009,0.00025,2]
[340478714,1729290667003,-872.82261706,0.00025,2]
[340478715,1729290672276,174.78026982,0.00027,120]
[340478716,1729290785227,800.0,0.00026986,120]
[340478717,1729290809752,2000.0,0.00023667,120]
[340478718,1729290905544,167.79,0.00026986,120]
[340478719,1729290959603,180.0,0.00025942,120]
[340478720,1729291202968,202.1,0.00026133,120]
[340478721,1729291320445,2000.0,0.00023134,120]
[340478722,1729291502922,180.0,0.00025395,120]
[340478723,1729291638138,-159.36,0.00010959,2]
[340478724,1729291638159,-163.861769,0.00013458,2]
[340478725,1729291638182,-1140.48313797,0.00013558,2]
[340478726,1729291642119,-150.0,0.00010916,2]
[340478727,1729291642142,-176.76011308,0.00013558,2]
[340478737,1729291832534,-157.17,0.00010959,2]
[340478738,1729291832544,-3056.603173,0.00013,2]
[340478739,1729291832555,-956.22668379,0.00013,2]
[340478740,1729291832565,-902.35998708,0.00013558,2]
[340478741,1729291832785,-381.66306187,0.00013558,2]
[340478742,1729291832795,-157.17,0.00019361,2]
[340478743,1729291832804,-1139.99,0.00021216,2]
[340478744,1729291832813,-1500.0,0.00021313,2]
[340478745,1729291832823,-380.53,0.00021313,2]
[340478746,1729291832832,-1389.21,0.00021313,2]
[340478747,1729291832842,-150.0,0.0002189,2]
[340478748,1729291832852,-499.99,0.0002189,2]
[340478749,1729291832862,-3566.15,0.0002189,2]
[340478750,1729291832871,-375.0,0.00021917,2]
[340478751,1729291832880,-250.0,0.00022958,2]
[340478752,1729291832889,-2751.0,0.00022971,2]
[340478753,1729291832899,-1453.24,0.00022971,2]
[340478755,1729291832908,-150.08,0.00022988,2]
[340478757,1729291832918,-200.0,0.00022995,2]
[340478759,1729291832928,-341.41,0.00023011,2]
[340478761,1729291832937,-250.0,0.00023021,2]
[340478762,1729291832947,-200.0,0.00023029,2]
[340478763,1729291832956,-434.86,0.00023038,2]
[340478764,1729291832965,-150.0,0.00023043,2]
[340478765,1729291832975,-200.0,0.00023056,2]
[340478766,1729291832984,-217.71,0.00023063,2]
[340478767,1729291832993,-458.56,0.00023079,2]
[340478768,1729291833003,-458.86,0.00023087,2]
[340478769,1729291833012,-500.0,0.00023092,2]
[340478770,1729291833020,-14950.86,0.0002312,2]
[340478771,1729291833030,-12624.09,0.00023128,2]
[340478772,1729291833039,-330.0,0.00023211,2]
[340478773,1729291833049,-202.1,0.00023229,2]
[340478774,1729291833059,-250.0,0.00023235,2]
[340478775,1729291833068,-234.3,0.00023244,2]
[340478776,1729291833077,-600.0,0.00023252,2]
[340478777,1729291833087,-195.58,0.00023272,30]
[340478778,1729291833096,-1132.0,0.000233,2]
[340478779,1729291833106,-1139.99,0.0002348,2]
[340478780,1729291833116,-169.66,0.00023508,2]
[340478781,1729291833128,-400.0,0.00023997,2]
[340478782,1729291833137,-458.86,0.00024242,2]
[340478783,1729291833146,-167.0,0.00024392,2]
[340478784,1729291833155,-450.0,0.00024428,2]
[340478785,1729291833165,-812.0,0.00024428,2]
[340478786,1729291833174,-1245.0,0.00024428,2]
[340478787,1729291833183,-560.0,0.00024428,2]
[340478788,1729291833194,-666.725,0.00024428,2]
[340478789,1729291833204,-936.0,0.00024428,2]
[340478790,1729291833214,-3357.0,0.00024428,2]
[340478791,1729291833224,-1909.0,0.00024428,2]
[340478792,1729291833233,-809.0,0.00024428,2]
[340478793,1729291833243,-5886.0,0.00024428,2]